bitfinex/quotes_SOLUSD_20250308
["timestamp","ask_amount","ask_price","bid_price","bid_amount"]
[1741451151281,35.52741405,135.98,135.93,35.52741405]
[1741451151655,42.66741405,136.0,135.94,35.52741405]
[1741451151857,7.14,136.0,135.94,35.52741405]
[1741451152076,35.52741405,136.03,135.98,6.4452]
[1741451152268,35.52741405,136.04,135.98,41.97261405]
[1741451152472,35.52741405,136.03,135.98,6.4452]
[1741451152865,50.0,136.05,136.0,35.52741405]
[1741451153065,35.52741405,136.03,135.98,41.97261405]
[1741451153264,35.52741405,136.02,135.98,6.4452]
[1741451153455,35.52741405,136.03,135.98,6.4452]
[1741451153669,35.52741405,136.02,135.98,6.4452]
[1741451154162,35.52741405,136.03,135.99,7.3534]
[1741451154358,50.0,136.05,135.99,7.3534]
[1741451154659,35.55741405,136.06,136.0,35.52741405]
[1741451154863,0.03,136.06,136.01,35.52741405]
[1741451155369,35.52741405,136.05,135.99,42.88081405]
[1741451155686,35.52741405,136.05,136.0,35.52741405]
[1741451155978,0.03,136.06,136.02,35.52741405]
[1741451156183,0.03,136.06,136.03,42.87871405]
[1741451156383,0.03,136.06,136.03,7.3513]
[1741451156572,35.52741405,136.05,136.0,42.64741405]
[1741451156772,35.52741405,136.05,136.0,14.4727]
[1741451156960,35.55741405,136.06,136.0,50.00011405]
[1741451157156,35.52741405,136.05,135.99,35.52741405]
[1741451157376,35.52741405,136.04,135.98,6.4452]
[1741451157583,35.52741405,136.03,135.98,49.32651405]
[1741451157761,35.52741405,136.04,135.98,49.32651405]
[1741451157957,35.52741405,136.04,135.99,35.52741405]
[1741451158581,35.52741405,136.04,135.98,13.7991]
[1741451158765,35.52741405,136.02,135.98,6.4452]
[1741451159970,35.52741405,136.01,135.98,6.4452]
[1741451160366,35.52741405,136.02,135.98,6.4452]
[1741451160666,0.03,136.06,136.0,35.52741405]
[1741451160871,35.52741405,136.05,136.0,35.52741405]
[1741451161068,35.52741405,136.03,135.98,49.07261405]
[1741451161276,50.0,136.05,135.98,6.4452]
[1741451161466,35.52741405,136.03,135.98,49.32641405]
[1741451161661,35.52741405,136.04,135.99,35.52741405]
[1741451161861,116.85741405,136.06,136.0,35.52741405]
[1741451162083,0.03,136.06,136.02,35.52741405]
[1741451162384,0.03,136.06,136.03,35.52741405]
[1741451162774,0.03,136.06,136.0,18.64964886]
[1741451163003,0.03,136.06,136.02,35.52741405]
[1741451164084,0.03,136.06,136.03,7.3513]
[1741451164885,0.03,136.06,136.03,42.87871405]
[1741451165074,0.03,136.06,136.04,35.52741405]
[1741451165284,0.03,136.06,136.05,35.52741405]
[1741451165599,0.03,136.06,136.05,43.59831405]
[1741451165758,0.0001,136.06,136.05,62.24796291]
[1741451165963,0.03,136.1,136.06,18.64964886]
[1741451166185,0.03,136.1,136.09,35.52741405]
[1741451167183,0.03,136.1,136.09,54.17706291]
[1741451168084,0.03,136.1,136.09,35.52741405]
[1741451168274,0.03,136.1,136.09,42.87541405]
[1741451168675,0.0001,136.1,136.09,61.52506291]
[1741451171978,0.0001,136.1,136.09,7.348]
[1741451172695,0.0001,136.1,136.09,42.87541405]
[1741451172887,0.0001,136.1,136.08,7.3484]
[1741451173089,35.52751405,136.1,136.06,7.3495]
[1741451173320,35.52751405,136.1,136.05,15.421]
[1741451173616,0.0001,136.1,136.06,35.52741405]
[1741451173813,0.0001,136.1,136.08,35.52741405]
[1741451174706,0.0001,136.1,136.07,42.87651405]
[1741451174904,0.0001,136.1,136.06,42.87691405]
[1741451175706,0.0001,136.1,136.09,35.52741405]
[1741451176016,0.0001,136.1,136.09,18.64964886]
[1741451176324,0.0001,136.1,136.09,54.17706291]
[1741451176613,0.0001,136.1,136.09,61.52506291]
[1741451177386,0.0001,136.1,136.09,68.54506291]
[1741451177802,0.0001,136.1,136.09,74.87146291]
[1741451177982,35.52741405,136.19,136.1,18.64964886]
[1741451178181,35.52741405,136.19,136.14,35.52741405]
[1741451178789,35.52741405,136.19,136.15,7.3448]
[1741451179093,0.03,136.2,136.15,42.87221405]
[1741451179398,35.55741405,136.2,136.15,42.87221405]
[1741451179707,35.52741405,136.18,136.14,14.3652]
[1741451179906,35.52741405,136.17,136.13,27.64424886]
[1741451180500,35.52741405,136.18,136.13,63.17166291]
[1741451181190,35.52741405,136.16,136.11,7.02]
[1741451181518,35.52741405,136.13,136.09,15.3231]
[1741451182207,35.52741405,136.14,136.09,15.3231]
[1741451182581,35.52741405,136.16,136.1,35.52741405]
[1741451182794,35.52741405,136.15,136.1,35.52741405]
[1741451183407,35.52741405,136.15,136.1,7.3472]
[1741451183902,35.52741405,136.14,136.1,7.3472]
[1741451184102,35.52741405,136.15,136.1,7.3472]
[1741451185686,35.52741405,136.15,136.1,42.87461405]
[1741451186105,35.52741405,136.16,136.11,18.64964886]
[1741451186407,35.52741405,136.16,136.1,42.87461405]
[1741451186408,35.55741405,136.19,136.1,8.44882478]
[1741451186598,35.52741405,136.13,136.09,6.3594]
[1741451186803,35.52741405,136.12,136.09,6.3594]
[1741451187001,50.0,136.15,136.09,0.033]
[1741451187587,35.52741405,136.11,136.09,0.033]
[1741451187785,85.52741405,136.15,136.09,0.033]
[1741451187992,35.52741405,136.11,136.09,0.033]
[1741451188304,42.87451405,136.11,136.09,0.033]
[1741451188684,35.52741405,136.1,136.09,0.033]
[1741451190416,7.04,136.13,136.09,0.033]
[1741451190607,35.52741405,136.11,136.09,0.033]
[1741451190807,42.56741405,136.13,136.09,0.033]
[1741451191018,7.04,136.13,136.09,0.033]
[1741451191228,7.04,136.13,136.09,35.56041405]
[1741451191430,35.52741405,136.14,136.09,35.56041405]
[1741451192130,35.52741405,136.14,136.09,0.033]
[1741451192431,35.52741405,136.14,136.09,7.381]
[1741451192634,35.52741405,136.13,136.09,7.381]
[1741451192932,35.52741405,136.11,136.09,0.033]
[1741451193817,35.52741405,136.12,136.09,0.033]
[1741451194027,35.52741405,136.11,136.09,0.033]
[1741451194834,35.52741405,136.13,136.09,0.033]
[1741451195035,35.52741405,136.12,136.09,0.033]
[1741451196215,35.52741405,136.13,136.09,0.033]
[1741451196405,35.52741405,136.15,136.09,35.56041405]
[1741451196613,0.03,136.12,136.11,35.52741405]
[1741451197234,0.03,136.12,136.1,54.17706291]
[1741451197731,0.03,136.12,136.11,54.17706291]
[1741451197931,0.03,136.12,136.1,35.52741405]
[1741451198108,0.03,136.12,136.1,7.3475]
[1741451198310,35.55741405,136.12,136.09,1.5824]
[1741451198505,35.55741405,136.12,136.09,7.381]
[1741451199429,35.55741405,136.12,136.09,0.033]
[1741451199639,35.52741405,136.11,136.09,0.033]
[1741451199806,35.55741405,136.12,136.09,0.033]
[1741451200933,0.03,136.12,136.09,0.033]
[1741451201436,35.55741405,136.12,136.09,0.033]
[1741451201735,0.03,136.12,136.09,18.68264886]
[1741451201917,0.03,136.12,136.09,54.21006291]
[1741451202116,0.03,136.12,136.09,18.68264886]
[1741451202622,35.55741405,136.12,136.09,0.033]
[1741451203110,35.52741405,136.1,136.09,0.033]
[1741451203517,35.52741405,136.11,136.09,0.033]
[1741451204427,35.52741405,136.1,136.09,0.033]
[1741451205025,35.52741405,136.11,136.09,0.033]
[1741451205233,35.55741405,136.12,136.09,0.033]
[1741451205616,0.03,136.12,136.09,0.033]
[1741451207141,35.55741405,136.12,136.09,0.033]
[1741451207639,35.52741405,136.11,136.09,0.033]
[1741451207829,35.52741405,136.1,136.09,0.033]
[1741451209037,121.0548281,136.1,136.09,0.033]
[1741451209336,50.0,136.08,136.0,7.3528]
[1741451209631,35.52741405,136.04,136.0,7.3528]
[1741451210052,35.52741405,136.03,135.99,1.6195]
[1741451210428,35.52741405,136.06,136.01,35.52741405]
[1741451211238,35.52741405,136.06,136.0,35.52741405]
[1741451211715,35.52741405,136.08,136.01,18.64964886]
[1741451211919,35.52741405,136.08,136.02,35.52741405]
[1741451212131,35.52741405,136.07,136.02,42.87871405]
[1741451212337,35.52741405,136.05,136.02,7.3513]
[1741451212544,35.52741405,136.07,136.02,7.3513]
[1741451212730,35.52741405,136.08,136.02,42.87871405]
[1741451213042,35.52741405,136.07,136.02,42.87871405]
[1741451213443,35.52741405,136.07,136.02,7.3513]
[1741451213820,35.52741405,136.06,136.02,7.3513]
[1741451214017,35.52741405,136.06,136.01,35.52741405]
[1741451214018,35.52741405,136.05,136.0,7.3525]
[1741451214222,35.52741405,136.04,136.0,7.3525]
[1741451214439,35.52741405,136.05,136.0,7.3525]
[1741451214755,35.52741405,136.05,136.0,42.87991405]
[1741451214945,35.52741405,136.05,136.0,61.26221405]
[1741451215118,35.52741405,136.05,136.0,42.87991405]
[1741451215325,35.52741405,136.03,136.0,7.3525]
[1741451215952,35.52741405,136.04,135.99,42.88081405]
[1741451216127,50.0,136.08,136.0,35.52741405]
[1741451216333,50.0,136.1,136.03,35.52741405]
[1741451216650,35.52741405,136.06,136.01,54.17706291]
[1741451217025,35.52741405,136.06,136.01,18.64964886]
[1741451217226,35.52741405,136.05,136.0,35.52741405]
[1741451217441,35.52741405,136.04,135.99,61.26451405]
[1741451217647,35.52741405,136.04,135.99,7.3534]
[1741451217836,35.52741405,136.04,135.99,42.88081405]
[1741451219156,35.52741405,136.04,135.99,7.3534]
[1741451219460,35.52741405,136.0,135.97,0.033]
[1741451219636,35.52741405,136.01,135.97,7.3874]
[1741451219951,35.52741405,136.04,135.99,18.64964886]
[1741451220142,35.52741405,136.04,135.99,26.00304886]
[1741451220348,8.772,136.06,135.99,61.26451405]
[1741451220542,35.52741405,136.06,136.0,35.52741405]
[1741451220729,35.52741405,136.04,135.99,42.88081405]
[1741451220929,35.52741405,136.04,135.99,26.00304886]
[1741451221143,35.52741405,136.03,135.98,35.52741405]
[1741451221436,35.52741405,136.05,135.99,35.52741405]
[1741451221631,35.52741405,136.07,136.01,35.52741405]
[1741451221858,140.072,136.1,136.02,35.52741405]
[1741451221859,35.52741405,136.08,136.02,35.52741405]
[1741451222036,66.1197,136.1,136.01,35.52741405]
[1741451222037,35.52741405,136.07,136.01,35.52741405]
[1741451222439,35.52741405,136.06,136.01,18.64964886]
[1741451222645,35.52741405,136.06,136.01,35.52741405]
[1741451222845,35.52741405,136.05,136.0,35.52741405]
[1741451223061,35.52741405,136.06,136.0,54.17706291]
[1741451223556,35.52741405,136.02,135.97,42.91481405]
[1741451223864,35.52741405,136.02,135.97,7.3874]
[1741451224256,35.52741405,136.01,135.97,0.033]
[1741451225240,25.52741405,136.01,135.97,0.033]
[1741451226032,35.52741405,136.0,135.97,0.033]
[1741451226240,85.52741405,135.98,135.97,0.033]
[1741451227453,71.612,135.96,135.95,0.033]
[1741451227659,107.13941405,135.96,135.95,0.033]
[1741451228941,50.0,135.98,135.95,0.033]
[1741451229250,35.52741405,135.96,135.95,0.033]
[1741451229761,146.5467,136.0,135.95,0.033]
[1741451229947,35.52741405,135.97,135.95,0.033]
[1741451230155,140.052,136.0,135.95,0.033]
[1741451230353,35.52741405,135.97,135.95,0.033]
[1741451230559,35.52741405,136.0,135.95,0.033]
[1741451230744,35.52741405,136.0,135.95,35.56041405]
[1741451231042,7.14,136.02,135.97,35.52741405]
[1741451231261,35.52741405,136.03,135.97,35.52741405]
[1741451231442,297.0747,136.07,135.99,35.52741405]
[1741451231443,35.52741405,136.04,135.99,35.52741405]
[1741451231642,35.52741405,136.06,136.01,35.52741405]
[1741451231849,50.0,136.09,136.03,35.52741405]
[1741451231850,35.52741405,136.09,136.03,35.52741405]
[1741451232367,35.52741405,136.08,136.02,54.17706291]
[1741451232569,35.52741405,136.07,136.03,7.3513]
[1741451232755,35.52741405,136.05,136.01,6.4716]
[1741451232961,35.52741405,136.05,136.01,13.8237]
[1741451233155,35.52741405,136.08,136.02,54.17706291]
[1741451233357,35.52741405,136.08,136.02,35.52741405]
[1741451233546,35.52741405,136.05,136.01,6.4716]
[1741451233745,35.52741405,136.05,136.01,13.8237]
[1741451233964,35.52741405,136.06,136.01,13.8237]
[1741451234266,50.03,136.09,136.01,13.8237]
[1741451234267,35.52741405,136.05,136.01,6.4716]
[1741451234468,35.52741405,136.04,136.01,6.4716]
[1741451234663,35.52741405,136.04,135.99,16.1104]
[1741451234878,35.52741405,136.07,136.02,35.52741405]
[1741451235583,35.52741405,136.08,136.02,35.52741405]
[1741451235780,35.55741405,136.09,136.03,35.52741405]
[1741451236082,0.03,136.09,136.05,35.52741405]
[1741451236260,0.03,136.09,136.04,6.2272]
[1741451236447,35.55741405,136.09,136.04,13.5778]
[1741451236647,0.03,136.09,136.04,67.75486291]
[1741451237194,0.03,136.09,136.05,35.52741405]
[1741451237390,0.03,136.09,136.07,35.52741405]
[1741451237552,0.03,136.09,136.08,54.17706291]
[1741451238051,0.03,136.09,136.06,37.08501405]
[1741451238251,0.03,136.09,136.07,18.64964886]
[1741451238482,0.03,136.09,136.06,8.907]
[1741451238992,0.03,136.09,136.06,44.43441405]
[1741451239651,0.03,136.09,136.06,8.907]
[1741451239888,35.55741405,136.09,136.04,6.2272]
[1741451240088,35.52741405,136.08,136.04,6.2272]
[1741451240259,35.52741405,136.07,136.02,8.9093]
[1741451240658,35.52741405,136.06,136.01,26.00194886]
[1741451241053,35.52741405,136.04,136.0,6.5517]
[1741451241293,35.52741405,136.04,136.0,13.9046]
[1741451241470,35.52741405,136.02,135.98,1.5576]
[1741451241782,35.52741405,136.0,135.96,6.5517]
[1741451242074,35.52741405,135.99,135.94,1.5906]
[1741451242280,35.52741405,135.98,135.94,1.5906]
[1741451242457,35.52741405,135.97,135.94,0.033]
[1741451242651,35.52741405,135.98,135.94,0.033]
[1741451242851,35.52741405,136.0,135.94,35.56041405]
[1741451243069,35.52741405,135.99,135.94,0.033]
[1741451243359,35.52741405,135.99,135.94,18.68264886]
[1741451243766,35.52741405,135.98,135.94,0.033]
[1741451244159,50.0,136.01,135.94,0.033]
[1741451244356,35.52741405,135.99,135.94,18.68264886]
[1741451244562,35.52741405,136.0,135.94,54.21006291]
[1741451244776,35.52741405,135.99,135.95,7.3886]
[1741451246063,0.03,136.12,136.01,20.0]
[1741451246269,0.03,136.12,136.06,35.52741405]
[1741451246465,0.03,136.12,136.08,35.52741405]
[1741451248156,0.03,136.12,136.08,42.87601405]
[1741451248579,0.03,136.12,136.08,7.3486]
[1741451248781,0.03,136.12,136.08,61.52566291]
[1741451249079,0.03,136.12,136.08,61.24751405]
[1741451249267,0.03,136.12,136.08,42.87601405]
[1741451249471,0.03,136.12,136.08,50.01601405]
[1741451249674,0.03,136.12,136.08,14.4886]
[1741451249859,35.55741405,136.12,136.08,7.3486]
[1741451250064,35.52741405,136.1,136.06,7.3496]
[1741451250366,35.52741405,136.1,136.05,7.3502]
[1741451250762,35.52741405,136.1,136.05,42.87761405]
[1741451250962,35.52741405,136.11,136.05,42.87761405]
[1741451251164,35.52741405,136.11,136.05,35.52741405]
[1741451251576,35.52741405,136.1,136.04,35.52741405]
[1741451251783,57.3765,136.12,136.03,49.43031405]
[1741451251784,35.52741405,136.08,136.03,49.43031405]
[1741451252166,35.52741405,136.09,136.04,35.52741405]
[1741451252381,35.52741405,136.11,136.05,35.52741405]
[1741451252584,0.03,136.12,136.07,35.52741405]
[1741451252775,35.55741405,136.12,136.06,35.52741405]
[1741451253174,35.55741405,136.12,136.07,35.52741405]
[1741451253372,35.55741405,136.12,136.06,35.52741405]
[1741451253902,35.55741405,136.12,136.07,35.52741405]
[1741451254098,0.03,136.12,136.08,35.52741405]
[1741451254785,0.03,136.12,136.08,42.87591405]
[1741451255600,0.03,136.12,136.09,35.52741405]
[1741451256110,0.03,136.12,136.1,35.52741405]
[1741451256412,0.03,136.12,136.11,61.52396291]
[1741451256994,0.03,136.12,136.11,67.77166291]
[1741451257810,0.03,136.12,136.11,49.12201405]
[1741451259135,0.03,136.12,136.11,67.77166291]
[1741451259530,35.05741405,136.18,136.11,67.77166291]
[1741451259830,35.52741405,136.16,136.1,49.97471405]
[1741451260916,0.03,136.19,136.14,35.52741405]
[1741451261317,35.55741405,136.19,136.14,35.52741405]
[1741451261500,35.55741405,136.19,136.11,18.64964886]
[1741451261501,35.52741405,136.18,136.13,35.52741405]
[1741451262409,35.55741405,136.19,136.13,35.52741405]
[1741451262621,0.03,136.19,136.15,35.52741405]
[1741451262938,0.03,136.19,136.15,42.87181405]
[1741451263139,0.03,136.19,136.16,35.52741405]
[1741451263333,0.03,136.19,136.15,42.87181405]
[1741451264041,0.03,136.19,136.16,35.52741405]
[1741451264230,0.03,136.19,136.15,13.5532]
[1741451264433,0.03,136.19,136.18,35.52741405]
[1741451265318,0.03,136.19,136.15,13.2888]
[1741451265520,0.03,136.19,136.17,35.52741405]
[1741451266238,0.03,136.19,136.16,35.52741405]
[1741451266453,0.03,136.19,136.13,18.64964886]
[1741451266623,0.03,136.19,136.14,35.52741405]
[1741451266826,35.55741405,136.19,136.14,35.52741405]
[1741451268742,42.90011405,136.19,136.14,35.52741405]
[1741451269040,42.90011405,136.19,136.13,35.52741405]
[1741451269219,35.52741405,136.18,136.12,35.52741405]
[1741451269427,35.55741405,136.19,136.14,35.52741405]
[1741451269644,42.90011405,136.19,136.13,35.52741405]
[1741451269853,0.03,136.19,136.14,35.52741405]
[1741451270061,7.3727,136.19,136.14,35.52741405]
[1741451270357,42.90011405,136.19,136.14,35.52741405]
[1741451271026,35.52741405,136.18,136.13,35.52741405]
[1741451271223,42.90011405,136.19,136.13,35.52741405]
[1741451271433,42.90011405,136.19,136.14,35.52741405]
[1741451272133,0.03,136.19,136.14,35.52741405]
[1741451272338,0.03,136.19,136.16,35.52741405]
[1741451273244,0.03,136.19,136.17,35.52741405]
[1741451273442,0.03,136.19,136.16,35.52741405]
[1741451274069,0.03,136.19,136.15,42.87191405]
[1741451274367,0.03,136.19,136.14,35.52741405]
[1741451274829,0.03,136.19,136.15,35.52741405]
[1741451276424,0.03,136.19,136.14,42.87271405]
[1741451278453,0.03,136.19,136.14,35.52741405]
[1741451278656,0.03,136.19,136.13,35.52741405]
[1741451278657,35.52741405,136.18,136.13,35.52741405]
[1741451278952,35.55741405,136.19,136.12,7.3462]
[1741451279151,0.03,136.19,136.14,35.52741405]
[1741451279854,0.03,136.19,136.14,42.87241405]
[1741451280035,35.55741405,136.19,136.14,42.87241405]
[1741451281235,0.03,136.19,136.14,42.87241405]
[1741451281430,0.03,136.19,136.15,35.52741405]
[1741451282140,0.03,136.19,136.15,42.87211405]
[1741451282336,0.03,136.19,136.15,7.3447]
[1741451282647,0.03,136.19,136.14,7.3452]
[1741451282648,35.55741405,136.19,136.14,7.3452]
[1741451283169,35.55741405,136.19,136.13,42.90611405]
[1741451283359,35.55741405,136.19,136.14,35.52741405]
[1741451284155,35.55741405,136.19,136.15,7.3448]
[1741451284339,0.03,136.19,136.15,42.87221405]
[1741451284937,0.03,136.19,136.15,7.3448]
[1741451285452,0.03,136.19,136.15,29.50448885]
[1741451285953,0.0001,136.19,136.18,40.80933771]
[1741451286160,0.0001,136.19,136.18,48.15253771]
[1741451286466,0.0001,136.19,136.18,54.72463771]
[1741451288355,0.0001,136.19,136.18,40.80933771]
[1741451289246,0.0001,136.19,136.18,35.43103216]
[1741451289436,0.0001,136.19,136.16,35.43103216]
[1741451290773,35.43103216,136.18,136.13,0.033]
[1741451290980,35.43103216,136.17,136.13,0.033]
[1741451291146,35.43103216,136.18,136.13,35.46403216]
[1741451291350,35.43113216,136.19,136.14,35.43103216]
[1741451291875,35.43113216,136.19,136.13,35.46403216]
[1741451292073,35.43113216,136.19,136.13,0.033]
[1741451292074,35.43103216,136.16,136.13,0.033]
[1741451292366,35.43103216,136.15,136.13,0.033]
[1741451292672,35.43103216,136.17,136.13,0.033]
[1741451294263,7.3443,136.16,136.13,0.033]
[1741451295315,7.3437,136.17,136.13,0.033]
[1741451295615,0.0001,136.19,136.15,35.43103216]
[1741451295976,35.43113216,136.19,136.13,0.033]
[1741451296205,35.43113216,136.19,136.13,35.46403216]
[1741451296511,35.43113216,136.19,136.14,35.43103216]
[1741451297499,0.0001,136.19,136.14,35.43103216]
[1741451298085,35.43113216,136.19,136.14,35.43103216]
[1741451298411,35.43103216,136.17,136.13,0.033]
[1741451298783,35.43103216,136.17,136.13,7.3789]
[1741451298985,35.43103216,136.18,136.13,7.3789]
[1741451299908,35.43103216,136.18,136.13,42.80993216]
[1741451300501,0.0001,136.19,136.13,42.80993216]
[1741451300502,35.43113216,136.19,136.13,42.80993216]
[1741451300798,0.0001,136.19,136.16,35.43103216]
[1741451300998,0.0001,136.19,136.18,35.43103216]
[1741451301200,0.0001,136.19,136.18,54.08068102]
[1741451301782,0.0001,136.19,136.18,35.43103216]
[1741451302189,0.0001,136.19,136.18,54.08068102]
[1741451302907,0.03,136.23,136.19,18.64964886]
[1741451303199,0.03,136.23,136.22,54.08068102]
[1741451304694,0.03,136.23,136.22,35.43103216]
[1741451304910,0.03,136.23,136.21,42.77243216]
[1741451305094,0.03,136.23,136.22,35.43103216]
[1741451305407,0.03,136.23,136.22,54.08068102]
[1741451306504,0.03,136.23,136.22,89.51171318]
[1741451306689,0.03,136.23,136.22,95.73221318]
[1741451306897,0.03,136.23,136.22,103.07321318]
[1741451307306,0.03,136.23,136.22,67.64218102]
[1741451307490,0.03,136.23,136.22,61.42168102]
[1741451311092,0.0001,136.23,136.22,96.85271318]
[1741451311718,0.0001,136.23,136.22,61.42168102]
[1741451312222,0.0001,136.23,136.22,96.85271318]
[1741451313309,0.0001,136.23,136.22,48.1159034]
[1741451313502,0.0001,136.23,136.22,71.88015794]
[1741451313909,0.0101,136.24,136.23,18.64964886]
[1741451314103,0.0101,136.24,136.23,40.7749034]
[1741451314811,0.0101,136.24,136.23,48.1154034]
[1741451315609,0.0101,136.24,136.23,29.46575454]
[1741451315815,0.0101,136.24,136.23,7.3405]
[1741451316810,0.0101,136.24,136.23,22.12525454]
[1741451319113,0.0101,136.24,136.23,48.1154034]
[1741451327939,0.03,136.26,136.23,66.4667034]
[1741451328145,0.03,136.26,136.25,40.7749034]
[1741451329027,0.03,136.26,136.25,48.1143034]
[1741451329646,0.03,136.26,136.25,7.3394]
[1741451329937,0.03,136.26,136.25,48.1143034]
[1741451330915,0.03,136.26,136.25,25.98904886]
[1741451331114,0.03,136.26,136.25,48.1143034]
[1741451332638,0.03,136.29,136.25,48.1143034]
[1741451332945,0.03,136.29,136.28,22.12525454]
[1741451334636,0.03,136.29,136.28,29.46305454]
[1741451335240,0.03,136.29,136.28,48.1127034]
[1741451335948,0.03,136.29,136.28,7.3378]
[1741451337817,0.03,136.29,136.27,22.12525454]
[1741451338117,0.03,136.29,136.27,7.3381]
[1741451338632,0.03,136.29,136.22,0.033]
[1741451338633,22.12525454,136.28,136.22,0.033]
[1741451338843,22.12525454,136.25,136.22,0.033]
[1741451339050,22.12525454,136.26,136.22,0.033]
[1741451339534,0.03,136.29,136.25,22.12525454]
[1741451340243,22.15525454,136.29,136.24,22.12525454]
[1741451340423,22.12525454,136.28,136.23,22.12525454]
[1741451340956,20.0,136.27,136.25,0.033]
[1741451341248,42.12525454,136.27,136.25,0.033]
[1741451341454,22.12525454,136.26,136.25,0.033]
[1741451343540,29.46415454,136.26,136.25,0.033]
[1741451343751,35.80795454,136.26,136.25,0.033]
[1741451343924,87.37315454,136.26,136.25,0.033]
[1741451344120,20.0,136.23,136.22,0.033]
[1741451344323,42.12525454,136.23,136.22,0.033]
[1741451345537,49.46575454,136.23,136.22,0.033]
[1741451346066,90.24065794,136.23,136.22,0.033]
[1741451346234,90.24065794,136.23,136.13,22.15825454]
[1741451346235,20.0,136.18,136.13,22.15825454]
[1741451346837,20.0,136.18,136.14,22.12525454]
[1741451347359,42.12525454,136.18,136.13,22.15825454]
[1741451347566,42.12525454,136.18,136.13,29.50395454]
[1741451348586,20.0,136.18,136.14,22.12525454]
[1741451348794,81.3,136.22,136.16,22.12525454]
[1741451348967,22.12525454,136.22,136.17,22.12525454]
[1741451349163,22.12525454,136.21,136.16,22.12525454]
[1741451349577,22.12525454,136.21,136.17,7.3437]
[1741451350272,23.69045454,136.23,136.18,22.12525454]
[1741451350469,1.5652,136.23,136.19,22.12525454]
[1741451350806,13.2038,136.26,136.21,22.12525454]
[1741451350807,6.3438,136.26,136.21,22.12525454]
[1741451351380,28.46905454,136.26,136.21,22.12525454]
[1741451351767,28.46905454,136.26,136.22,7.341]
[1741451352086,22.12525454,136.25,136.2,7.3421]
[1741451352265,22.12525454,136.25,136.2,29.46735454]
[1741451352465,28.46905454,136.26,136.2,29.46735454]
[1741451352768,22.12525454,136.25,136.21,0.033]
[1741451353357,28.49905454,136.26,136.21,0.033]
[1741451353557,28.49905454,136.26,136.21,22.15825454]
[1741451353760,28.49905454,136.26,136.22,7.341]
[1741451354570,20.0,136.24,136.22,7.341]
[1741451356954,22.15525454,136.26,136.22,7.341]
[1741451357372,0.03,136.26,136.22,29.46625454]
[1741451357576,0.03,136.26,136.23,22.12525454]
[1741451359182,0.03,136.26,136.24,7.3399]
[1741451359984,0.03,136.26,136.24,29.46515454]
[1741451360185,0.03,136.26,136.25,40.7749034]
[1741451360390,0.0001,136.26,136.25,40.7749034]
[1741451360890,0.0001,136.26,136.25,18.64964886]
[1741451361186,0.0001,136.26,136.25,40.7749034]
[1741451361390,0.0001,136.26,136.25,48.1143034]
[1741451362800,0.0001,136.26,136.25,29.46465454]
[1741451363097,0.0001,136.26,136.25,7.3394]
[1741451365494,0.0001,136.26,136.25,22.12525454]
[1741451366183,0.0001,136.26,136.24,7.3399]
[1741451366391,0.0001,136.26,136.25,22.12525454]
[1741451367498,0.0001,136.26,136.25,48.1143034]
[1741451369615,0.0001,136.26,136.25,49.6825034]
[1741451370429,0.03,136.33,136.26,18.64964886]
[1741451370593,0.03,136.33,136.29,22.12525454]
[1741451370795,0.03,136.33,136.3,22.12525454]
[1741451371335,0.03,136.33,136.29,22.12525454]
[1741451371618,0.03,136.33,136.3,22.12525454]
[1741451371914,0.03,136.33,136.31,7.3362]
[1741451372817,0.03,136.33,136.3,7.3365]
[1741451373609,0.03,136.33,136.3,29.46175454]
[1741451375191,22.15525454,136.33,136.29,7.3371]
[1741451376888,0.03,136.33,136.29,7.3371]
[1741451378092,0.03,136.33,136.29,29.46235454]
[1741451379894,0.03,136.33,136.3,22.12525454]
[1741451380093,0.03,136.33,136.32,22.12525454]
[1741451380298,0.03,136.33,136.32,40.7749034]
[1741451381985,0.03,136.33,136.32,48.1105034]
[1741451382186,0.03,136.33,136.32,29.46085454]
[1741451382398,0.03,136.33,136.32,7.3356]